bitfinex/quotes_BTCUSD_20250618
["timestamp","ask_amount","ask_price","bid_price","bid_amount"]
[1750226184424,5.20055517,105530.0,105520.0,0.82512599]
[1750226184634,5.20055517,105530.0,105520.0,0.80617342]
[1750226184863,5.20055517,105530.0,105520.0,0.82512599]
[1750226185126,5.19107929,105530.0,105520.0,0.82512599]
[1750226186098,5.20055517,105530.0,105520.0,0.82512599]
[1750226186314,5.20055571,105530.0,105520.0,0.82512599]
[1750226187135,5.19107974,105530.0,105520.0,0.82512599]
[1750226189587,5.18160386,105530.0,105520.0,0.82512599]
[1750226190824,5.18160386,105530.0,105520.0,0.67168599]
[1750226191069,5.19107983,105530.0,105520.0,0.67168599]
[1750226191296,5.19107983,105530.0,105520.0,0.82512599]
[1750226191517,5.57528196,105530.0,105520.0,0.68591421]
[1750226191734,5.36164808,105530.0,105520.0,0.69539072]
[1750226193065,5.36164808,105530.0,105520.0,0.68591421]
[1750226193501,5.36164808,105530.0,105520.0,0.69539081]
[1750226194249,5.16265228,105530.0,105520.0,0.70486732]
[1750226194564,5.19107921,105530.0,105520.0,0.71434356]
[1750226195796,5.19107921,105530.0,105520.0,0.42324356]
[1750226196959,5.18160333,105530.0,105520.0,0.42324356]
[1750226199115,4.84160333,105530.0,105520.0,0.42324356]
[1750226200748,4.85107921,105530.0,105520.0,0.42324356]
[1750226201046,5.19107921,105530.0,105520.0,0.42324356]
[1750226201719,5.19107921,105530.0,105520.0,0.71434356]
[1750226207459,5.18160333,105530.0,105520.0,0.71434356]
[1750226209688,5.19107921,105530.0,105520.0,0.71434356]
[1750226210336,5.17212754,105530.0,105520.0,0.71434356]
[1750226210568,5.18160324,105530.0,105520.0,0.71434356]
[1750226210796,5.12217676,105530.0,105520.0,0.82512617]
[1750226211001,5.09197676,105530.0,105520.0,0.88672617]
[1750226211218,4.87834288,105530.0,105520.0,0.88672617]
[1750226211432,5.09197676,105530.0,105520.0,0.88672617]
[1750226213523,5.09197676,105530.0,105520.0,0.59562617]
[1750226215089,5.1014521,105530.0,105520.0,0.59562617]
[1750226216147,5.11092753,105530.0,105520.0,0.59562617]
[1750226217224,5.11092753,105530.0,105520.0,0.56482617]
[1750226217436,5.11092753,105530.0,105520.0,0.59542617]
[1750226219520,5.11092753,105530.0,105520.0,0.88652617]
[1750226219937,5.11092753,105530.0,105520.0,0.85592617]
[1750226220149,5.12040314,105530.0,105520.0,0.85592617]
[1750226220359,5.1014521,105530.0,105520.0,0.85592617]
[1750226220834,4.664709,105530.0,105520.0,0.85592617]
[1750226221059,5.09197676,105530.0,105520.0,0.88612617]
[1750226221275,5.10145202,105530.0,105520.0,0.88612617]
[1750226221498,5.09197676,105530.0,105520.0,0.88612617]
[1750226222350,5.10145202,105530.0,105520.0,0.88612617]
[1750226224559,5.10145202,105530.0,105520.0,0.82512617]
[1750226224742,5.11092736,105530.0,105520.0,0.82512617]
[1750226226461,5.10145202,105530.0,105520.0,0.82512617]
[1750226226674,5.09197676,105530.0,105520.0,0.82512617]
[1750226226890,5.10145202,105530.0,105520.0,0.85572617]
[1750226229056,5.09197676,105530.0,105520.0,0.85572617]
[1750226230821,5.10145193,105530.0,105520.0,0.85572617]
[1750226231655,5.09197676,105530.0,105520.0,0.85572617]
[1750226232368,5.10145202,105530.0,105520.0,0.85572617]
[1750226232674,5.09197676,105530.0,105520.0,0.85572617]
[1750226232876,5.10145202,105530.0,105520.0,0.85572617]
[1750226234134,5.09197676,105530.0,105520.0,0.85572617]
[1750226234482,5.11092727,105530.0,105520.0,0.85572617]
[1750226236386,5.10145193,105530.0,105520.0,0.85572617]
[1750226236591,5.11092719,105530.0,105520.0,0.85572617]
[1750226237353,5.12040262,105530.0,105520.0,0.85572617]
[1750226237566,5.12040262,105530.0,105520.0,0.82512617]
[1750226238546,5.11092719,105530.0,105520.0,0.82512617]
[1750226238909,5.12040253,105530.0,105520.0,0.82512617]
[1750226241267,5.11092719,105530.0,105520.0,0.82512617]
[1750226241925,5.12040253,105530.0,105520.0,0.82512617]
[1750226243295,5.11092719,105530.0,105520.0,0.82512617]
[1750226244214,5.12040253,105530.0,105520.0,0.82512617]
[1750226246364,5.11092719,105530.0,105520.0,0.82512617]
[1750226248177,5.12040262,105530.0,105520.0,0.82512617]
[1750226248380,5.12987814,105530.0,105520.0,0.82512617]
[1750226248589,5.12040262,105530.0,105520.0,0.82512617]
[1750226249153,4.88071848,105530.0,105520.0,0.82512617]
[1750226249553,5.60700962,105530.0,105520.0,0.82512617]
[1750226249799,5.60700953,105530.0,105520.0,0.82512617]
[1750226252810,5.61648505,105530.0,105520.0,0.82512617]
[1750226254583,5.62596066,105530.0,105520.0,0.82512617]
[1750226254837,5.61648505,105530.0,105520.0,0.82512617]
[1750226255042,5.61648496,105530.0,105520.0,0.82512617]
[1750226257257,5.62596048,105530.0,105520.0,0.82512617]
[1750226257467,5.61648531,105530.0,105520.0,0.82512617]
[1750226257774,5.60700979,105530.0,105520.0,0.82512617]
[1750226260161,5.59753436,105530.0,105520.0,0.82512617]
[1750226260866,5.60700979,105530.0,105520.0,0.82512617]
[1750226262307,5.6164854,105530.0,105520.0,0.82512617]
[1750226262556,5.60700979,105530.0,105520.0,0.82512617]
[1750226264046,5.58805902,105530.0,105520.0,0.82512617]
[1750226264448,5.58805893,105530.0,105520.0,0.82512617]
[1750226267451,5.59753419,105530.0,105520.0,0.82512617]
[1750226272271,5.58805893,105530.0,105520.0,0.82512617]
[1750226273993,5.57858376,105530.0,105520.0,0.82512617]
[1750226274233,5.58805893,105530.0,105520.0,0.82512617]
[1750226274463,5.57858376,105530.0,105520.0,0.82512617]
[1750226277775,5.57858376,105530.0,105520.0,0.67168617]
[1750226277998,5.58805902,105530.0,105520.0,0.82504617]
[1750226278883,5.57858376,105530.0,105520.0,0.82504617]
[1750226289152,5.58805902,105530.0,105520.0,0.82504617]
[1750226290515,5.58805893,105530.0,105520.0,0.82504617]
[1750226291262,5.57858376,105530.0,105520.0,0.82504617]
[1750226292500,5.151316,105530.0,105520.0,0.82504617]
[1750226292715,5.57858376,105530.0,105520.0,0.82504617]
[1750226301077,5.58805902,105530.0,105520.0,0.82504617]
[1750226301311,5.57858376,105530.0,105520.0,0.82504617]
[1750226302459,5.58805893,105530.0,105520.0,0.82504617]
[1750226304478,5.57858376,105530.0,105520.0,0.82504617]
[1750226306826,5.5880591,105530.0,105520.0,0.63232617]
[1750226307037,5.58805902,105530.0,105520.0,0.82492617]
[1750226307239,5.57858376,105530.0,105520.0,0.82492617]
[1750226308085,5.58805893,105530.0,105520.0,0.82492617]
[1750226308812,5.57858376,105530.0,105520.0,0.82492617]
[1750226309032,5.57858376,105530.0,105520.0,0.85752617]
[1750226315826,5.57858376,105530.0,105520.0,0.66492617]
[1750226316053,5.57858376,105530.0,105520.0,0.85752617]
[1750226319357,5.57858376,105530.0,105520.0,0.82492617]
[1750226320872,5.57858376,105530.0,105520.0,0.88802617]
[1750226321788,5.57858376,105530.0,105520.0,0.85582617]
[1750226322965,5.151316,105530.0,105520.0,0.85582617]
[1750226323177,5.151316,105530.0,105520.0,0.88902617]
[1750226323419,5.36494988,105530.0,105520.0,0.88902617]
[1750226323648,0.55363388,105530.0,105520.0,0.88902617]
[1750226326408,0.76726776,105530.0,105520.0,0.88898617]
[1750226333553,0.76726776,105530.0,105520.0,1.10578617]
[1750226333758,0.76726776,105530.0,105520.0,0.85578617]
[1750226338206,0.76726776,105530.0,105520.0,0.82488617]
[1750226338421,0.81851836,105530.0,105520.0,0.67156617]
[1750226338640,0.84861827,105530.0,105520.0,0.82484617]
[1750226338856,0.83914293,105530.0,105520.0,0.82484617]
[1750226339061,0.84861827,105530.0,105520.0,0.82484617]
[1750226339695,0.85809379,105530.0,105520.0,0.82484617]
[1750226339896,0.84861827,105530.0,105520.0,0.82484617]
[1750226340105,0.85809379,105530.0,105520.0,0.82484617]
[1750226340312,0.83914293,105530.0,105520.0,0.82484617]
[1750226340944,0.84861827,105530.0,105520.0,0.82484617]
[1750226341150,0.83914293,105530.0,105520.0,0.82484617]
[1750226341598,0.84861827,105530.0,105520.0,0.82484617]
[1750226342229,0.84861819,105530.0,105520.0,0.82484617]
[1750226343275,0.85809353,105530.0,105520.0,0.82484617]
[1750226343902,0.84861819,105530.0,105520.0,0.82484617]
[1750226346287,0.85809362,105530.0,105520.0,0.82480617]
[1750226346507,0.86756914,105530.0,105520.0,0.82480617]
[1750226346718,0.85809362,105530.0,105520.0,0.82480617]
[1750226346932,0.82799362,105530.0,105520.0,0.82480617]
[1750226347354,0.79569362,105530.0,105520.0,0.82480617]
[1750226349068,0.76726776,105530.0,105520.0,0.82480617]
[1750226349289,0.76726776,105530.0,105520.0,0.88740617]
[1750226349715,0.76726776,105530.0,105520.0,0.85630617]
[1750226350379,0.76726776,105530.0,105520.0,0.82480617]
[1750226350796,0.77674302,105530.0,105520.0,0.82480617]
[1750226351002,0.76726776,105530.0,105520.0,0.82480617]
[1750226351219,0.77674302,105530.0,105520.0,0.82480617]
[1750226351871,0.76726776,105530.0,105520.0,0.82480617]
[1750226352246,0.77674293,105530.0,105520.0,0.82480617]
[1750226355879,0.78621819,105530.0,105520.0,0.82480617]
[1750226356886,0.77674293,105530.0,105520.0,0.82480617]
[1750226358716,0.76726776,105530.0,105520.0,0.82480617]
[1750226365075,5.81726776,105530.0,105520.0,0.82480617]
[1750226365286,5.82674302,105530.0,105520.0,0.82480617]
[1750226365512,5.85934302,105530.0,105520.0,0.82480617]
[1750226366920,5.84986776,105530.0,105520.0,0.82480617]
[1750226367972,5.85934302,105530.0,105520.0,0.82480617]
[1750226368182,5.84986776,105530.0,105520.0,0.82480617]
[1750226368396,5.85934302,105530.0,105520.0,0.82480617]
[1750226368602,5.84986776,105530.0,105520.0,0.82480617]
[1750226369262,5.81726776,105530.0,105520.0,0.82480617]
[1750226369467,5.84569397,105530.0,105520.0,0.82480617]
[1750226370096,5.83621836,105530.0,105520.0,0.82480617]
[1750226370555,5.83621836,105530.0,105520.0,0.53370617]
[1750226371024,5.84569397,105530.0,105520.0,0.53370617]
[1750226371265,5.84569388,105530.0,105520.0,0.53370617]
[1750226372822,5.83621836,105530.0,105520.0,0.53370617]
[1750226374806,5.84569388,105530.0,105520.0,0.53370617]
[1750226375018,5.83621836,105530.0,105520.0,0.53370617]
[1750226379065,5.84569397,105530.0,105520.0,0.53370617]
[1750226379777,5.83621836,105530.0,105520.0,0.53370617]
[1750226380199,5.84569388,105530.0,105520.0,0.53370617]
[1750226380425,5.87649388,105530.0,105520.0,0.53370617]
[1750226381008,6.32979881,105530.0,105520.0,0.37094993]
[1750226381226,6.32032364,105530.0,105520.0,0.52414993]
[1750226381880,6.29189708,105530.0,105520.0,0.003]
[1750226382104,6.29189708,105530.0,105520.0,0.3944143]
[1750226382324,6.29189708,105530.0,105520.0,0.40389099]
[1750226383226,6.29189708,105530.0,105520.0,0.003]
[1750226383448,6.29189708,105530.0,105520.0,0.1954]
[1750226385637,6.29189708,105530.0,105520.0,0.0422]
[1750226385851,6.29189708,105530.0,105520.0,0.1954]
[1750226387444,5.95189708,105530.0,105520.0,0.1954]
[1750226389532,6.29189708,105530.0,105520.0,0.1954]
[1750226394615,6.29189708,105530.0,105520.0,0.0422]
[1750226394805,6.29189708,105530.0,105520.0,0.19236]
[1750226396005,6.29189708,105530.0,105520.0,0.20183687]
[1750226396430,6.29189708,105530.0,105520.0,0.41032786]
[1750226396634,6.29189708,105530.0,105520.0,0.41980446]
[1750226398884,6.29189708,105530.0,105520.0,0.42928097]
[1750226400354,6.29189708,105530.0,105520.0,0.41032786]
[1750226400995,6.32037108,105530.0,105520.0,0.41032786]
[1750226401411,6.32037108,105530.0,105520.0,0.42928079]
[1750226402078,6.13085125,105530.0,105520.0,0.42928025]
[1750226402289,6.12807826,105530.0,105520.0,0.42927971]
[1750226402497,6.11860238,105530.0,105520.0,0.42927971]
[1750226402781,5.86469271,105530.0,105520.0,0.42927971]
[1750226402986,5.8741685,105530.0,105520.0,0.49157971]
[1750226403201,5.8552171,105530.0,105520.0,0.49157971]
[1750226403407,5.86469262,105530.0,105520.0,0.46037971]
[1750226403621,5.87416832,105530.0,105520.0,0.46037971]
[1750226403844,5.88364411,105530.0,105520.0,0.46037971]
[1750226404845,5.89311999,105530.0,105520.0,0.46037971]
[1750226405047,5.63210788,105530.0,105520.0,0.60236232]
[1750226405724,5.84574176,105530.0,105520.0,0.85236232]
[1750226406040,5.81726776,105530.0,105520.0,0.85236232]
[1750226407640,5.47726776,105530.0,105520.0,0.85236232]
[1750226408037,5.26363388,105530.0,105520.0,0.85236232]
[1750226408446,5.47726776,105530.0,105520.0,0.85236232]
[1750226409440,5.81726776,105530.0,105520.0,0.85236232]
[1750226411241,5.05,105530.0,105520.0,0.85236232]
[1750226411455,0.55363388,105530.0,105520.0,0.85236232]
[1750226411661,5.29257633,105540.0,105530.0,0.29768724]
[1750226411864,5.29257633,105540.0,105530.0,0.393929]
[1750226412067,5.63257633,105540.0,105530.0,0.393929]
[1750226412866,5.84621021,105540.0,105530.0,0.393929]
[1750226413311,5.84821021,105540.0,105530.0,0.393929]
[1750226413791,5.84921021,105540.0,105530.0,0.394929]
[1750226414630,6.06284409,105540.0,105530.0,0.394929]
[1750226415872,5.84921021,105540.0,105530.0,0.394929]
[1750226418385,6.06284409,105540.0,105530.0,0.394929]
[1750226419460,6.07231845,105540.0,105530.0,0.394929]
[1750226420321,6.0817929,105540.0,105530.0,0.394929]
[1750226420786,6.07231845,105540.0,105530.0,0.394929]
[1750226421228,6.07231836,105540.0,105530.0,0.394929]
[1750226421438,6.08179281,105540.0,105530.0,0.394929]
[1750226422060,6.07231836,105540.0,105530.0,0.394929]
[1750226422929,6.08179281,105540.0,105530.0,0.361829]
[1750226423108,6.07231836,105540.0,105530.0,0.361829]
[1750226423344,6.08179281,105540.0,105530.0,0.392329]
[1750226423546,6.07231836,105540.0,105530.0,0.392329]
[1750226423964,6.08179281,105540.0,105530.0,0.392329]
[1750226424172,6.07231836,105540.0,105530.0,0.392329]
[1750226424884,6.08179281,105540.0,105530.0,0.392329]
[1750226425669,6.08179281,105540.0,105530.0,0.545449]
[1750226426215,6.08179281,105540.0,105530.0,0.482849]
[1750226426852,6.08179281,105540.0,105530.0,0.513949]
[1750226428029,6.07231836,105540.0,105530.0,0.513949]
[1750226428227,6.08179281,105540.0,105530.0,0.513949]
[1750226428450,6.07231836,105540.0,105530.0,0.513949]
[1750226428660,6.08179272,105540.0,105530.0,0.544149]
[1750226429705,6.07231836,105540.0,105530.0,0.544149]
[1750226430110,6.08179281,105540.0,105530.0,0.544149]
[1750226430938,6.08179281,105540.0,105530.0,0.583309]
[1750226431658,6.07231836,105540.0,105530.0,0.583309]
[1750226431860,6.08179281,105540.0,105530.0,0.583309]
[1750226432010,6.07231836,105540.0,105530.0,0.583309]
[1750226432233,6.08179272,105540.0,105530.0,0.583309]
[1750226434681,6.08179272,105540.0,105530.0,0.553109]
[1750226437261,6.09126717,105540.0,105530.0,0.553109]
[1750226438373,6.1007418,105540.0,105530.0,0.553109]
[1750226438807,6.09126717,105540.0,105530.0,0.553109]
[1750226439230,6.1007418,105540.0,105530.0,0.553109]
[1750226439453,6.09126717,105540.0,105530.0,0.522009]
[1750226439890,6.08179272,105540.0,105530.0,0.522009]
[1750226440105,6.07231836,105540.0,105530.0,0.522009]
[1750226440324,6.07231836,105540.0,105530.0,0.554209]
[1750226440533,6.07231836,105540.0,105530.0,0.584009]
[1750226442049,6.08179281,105540.0,105530.0,0.584009]
[1750226442513,6.07231836,105540.0,105530.0,0.584009]
[1750226442708,6.08179272,105540.0,105530.0,0.584009]
[1750226443230,6.07231836,105540.0,105530.0,0.584009]
[1750226444477,5.42194245,105540.0,105530.0,0.584009]
[1750226444722,6.07231836,105540.0,105530.0,0.584009]
[1750226447173,6.08179272,105540.0,105530.0,0.584009]
[1750226447408,6.09126726,105540.0,105530.0,0.554209]
[1750226447617,6.09126726,105540.0,105530.0,0.368889]
[1750226447837,6.09126726,105540.0,105530.0,0.521969]
[1750226448817,6.08179272,105540.0,105530.0,0.521969]
[1750226449039,6.09126717,105540.0,105530.0,0.521969]
[1750226449332,6.08179272,105540.0,105530.0,0.521969]
[1750226449870,6.07231836,105540.0,105530.0,0.521969]
[1750226450084,6.08179272,105540.0,105530.0,0.521969]
[1750226450451,6.09126726,105540.0,105530.0,0.521969]
[1750226450651,6.08179272,105540.0,105530.0,0.521969]
[1750226451771,6.07231836,105540.0,105530.0,0.521969]
[1750226451976,6.08179281,105540.0,105530.0,0.521969]
[1750226452141,6.07231836,105540.0,105530.0,0.521969]
[1750226452354,6.08179272,105540.0,105530.0,0.521969]
[1750226453688,6.09126717,105540.0,105530.0,0.521969]
[1750226455240,6.10074189,105540.0,105530.0,0.521969]
[1750226455446,6.1007418,105540.0,105530.0,0.521969]
[1750226456469,6.09126717,105540.0,105530.0,0.521969]
[1750226457107,6.10074171,105540.0,105530.0,0.521969]
[1750226458602,6.11021643,105540.0,105530.0,0.521969]
[1750226458802,6.10074171,105540.0,105530.0,0.521969]
[1750226460519,6.11021652,105540.0,105530.0,0.521969]
[1750226460740,6.11021643,105540.0,105530.0,0.368889]
[1750226460958,6.10074171,105540.0,105530.0,0.521969]
[1750226461201,6.11021643,105540.0,105530.0,0.521969]
[1750226461645,6.11021634,105540.0,105530.0,0.521969]
[1750226463119,6.10074207,105540.0,105530.0,0.521969]
[1750226464398,6.11021688,105540.0,105530.0,0.521969]
[1750226464615,6.10074207,105540.0,105530.0,0.521969]
[1750226465134,5.39,105530.0,105520.0,0.43953752]
[1750226465349,6.2810483,105530.0,105520.0,0.01049374]
[1750226465574,6.33576624,105530.0,105520.0,0.38169752]
[1750226465790,6.36423824,105530.0,105520.0,0.20163678]
[1750226466009,6.36423824,105530.0,105520.0,0.3911743]
[1750226466228,6.36423824,105530.0,105520.0,0.40065099]
[1750226466485,6.36523824,105530.0,105520.0,0.40265099]
[1750226466704,6.33354487,105530.0,105520.0,0.40365099]
[1750226467046,6.33354487,105530.0,105520.0,0.41312759]
[1750226467503,6.33354487,105530.0,105520.0,0.4226041]
[1750226467779,6.33354487,105530.0,105520.0,0.41312759]
[1750226469206,6.33354487,105530.0,105520.0,0.4226041]
[1750226469734,6.33354487,105530.0,105520.0,0.19516]
[1750226469980,6.33354487,105530.0,105520.0,0.40365099]
[1750226470190,6.33354487,105530.0,105520.0,0.42260392]
[1750226472654,6.33354487,105530.0,105520.0,0.24113439]
[1750226472885,6.32406917,105530.0,105520.0,0.20467687]
[1750226473096,6.3145932,105530.0,105520.0,0.003]
[1750226473310,6.3145932,105530.0,105520.0,0.15608]
[1750226473518,6.36993002,105530.0,105520.0,0.15608]
[1750226473732,6.3145932,105530.0,105520.0,0.12621002]
[1750226473937,6.3145932,105530.0,105520.0,0.11482002]
[1750226474199,5.2819143,105520.0,105510.0,0.40496812]
[1750226474404,5.2819143,105520.0,105510.0,0.20634812]
[1750226474610,5.3138143,105520.0,105510.0,0.47849321]
[1750226474826,5.3422893,105520.0,105510.0,0.2911]
[1750226475047,5.3422893,105520.0,105510.0,0.4833]
[1750226475665,5.3432893,105520.0,105510.0,0.4853]
[1750226476355,5.3422893,105520.0,105510.0,0.49277777]
[1750226476562,5.3432893,105520.0,105510.0,0.49277777]
[1750226476977,5.3472893,105520.0,105510.0,0.49377777]
[1750226479624,5.3472893,105520.0,105510.0,0.20267777]
[1750226479834,5.3472893,105520.0,105510.0,0.39223326]
[1750226480040,5.6872893,105520.0,105510.0,0.39223326]
[1750226480690,5.6872893,105520.0,105510.0,0.40171094]
[1750226480897,5.6872893,105520.0,105510.0,0.41118853]
[1750226481314,5.6872893,105520.0,105510.0,0.42066603]
[1750226482491,5.6872893,105520.0,105510.0,0.39223326]
[1750226483004,5.6872893,105520.0,105510.0,0.40171094]
[1750226484492,5.6872893,105520.0,105510.0,0.20267777]
[1750226485026,5.67781252,105520.0,105510.0,0.20267777]
[1750226485901,5.67781252,105520.0,105510.0,0.40171076]
[1750226486314,5.67781252,105520.0,105510.0,0.39223326]
[1750226486728,5.67781252,105520.0,105510.0,0.40171094]
[1750226488028,5.67781252,105520.0,105510.0,0.41118853]
[1750226488664,5.67781252,105520.0,105510.0,0.42066603]
[1750226489561,5.67781252,105520.0,105510.0,0.41118853]
[1750226490138,5.67781252,105520.0,105510.0,0.42066603]
[1750226491436,5.67781252,105520.0,105510.0,0.41118853]
[1750226492053,5.67781252,105520.0,105510.0,0.20267777]
[1750226492918,5.67781252,105520.0,105510.0,0.01047777]
[1750226493188,5.67781252,105520.0,105510.0,0.04012]
[1750226493411,5.67781252,105520.0,105500.0,0.02894223]
[1750226493412,5.65463308,105510.0,105500.0,0.02894223]
[1750226493629,5.06895635,105500.0,105490.0,0.48099006]
[1750226493852,5.08791288,105500.0,105490.0,0.49928972]
[1750226494079,5.0784343,105500.0,105490.0,0.69214866]
[1750226494299,5.0879127,105500.0,105490.0,0.72384866]
[1750226494513,5.10691321,105500.0,105490.0,0.72384866]
[1750226494728,5.1336498,105500.0,105490.0,0.72384866]
[1750226494942,5.13412396,105500.0,105490.0,0.72384866]
[1750226495574,5.13512396,105500.0,105490.0,0.72384866]
[1750226495779,5.13512459,105500.0,105490.0,0.72384866]
[1750226496200,5.1256461,105500.0,105490.0,0.72384866]
[1750226496412,5.32469822,105500.0,105490.0,0.71436972]
[1750226496801,5.32469822,105500.0,105490.0,0.68266972]
[1750226497019,5.31522009,105500.0,105490.0,0.68266972]
[1750226497226,5.31522009,105500.0,105490.0,0.65236972]
[1750226497429,5.31522009,105500.0,105490.0,0.6523699]
[1750226497645,5.31522009,105500.0,105490.0,0.64730817]
[1750226498051,5.33355641,105500.0,105490.0,0.47526984]
[1750226498253,5.33355641,105500.0,105490.0,0.61887054]
[1750226498460,5.32407801,105500.0,105490.0,0.46579054]
[1750226498680,5.35717801,105500.0,105490.0,0.2276]
[1750226498866,5.34769934,105500.0,105490.0,0.4198]
[1750226499076,5.34769934,105500.0,105490.0,0.618871]
[1750226499281,5.34769934,105500.0,105490.0,0.42927957]
[1750226499501,5.68529934,105500.0,105490.0,0.42867303]
[1750226499710,5.71649934,105500.0,105490.0,0.27559303]
[1750226499916,5.71649934,105500.0,105490.0,0.23647303]
[1750226500126,5.74783732,105500.0,105490.0,0.42867303]
[1750226500323,5.71649934,105500.0,105490.0,0.4381526]
[1750226500955,5.71649934,105500.0,105490.0,0.42867303]
[1750226501997,5.68529934,105500.0,105490.0,0.4381526]
[1750226502204,5.68529934,105500.0,105490.0,0.42927957]
[1750226502423,5.68529934,105500.0,105490.0,0.4381512]
[1750226503253,5.68529934,105500.0,105490.0,0.7292512]
[1750226503449,5.71849934,105500.0,105490.0,0.7292512]
[1750226504730,5.71849934,105500.0,105490.0,0.72925045]
[1750226505566,5.71849934,105500.0,105490.0,0.52757088]
[1750226505815,5.71849934,105500.0,105490.0,0.71977088]
[1750226506257,5.71849934,105500.0,105490.0,0.52757088]
[1750226506459,5.71849934,105500.0,105490.0,0.56669088]
[1750226506659,5.71849934,105500.0,105490.0,0.71977088]
[1750226506908,5.71849934,105500.0,105490.0,0.33909088]
[1750226507118,5.7411674,105500.0,105490.0,0.49217088]
[1750226507545,5.7401674,105500.0,105490.0,0.49217088]
[1750226507750,5.7411674,105500.0,105490.0,0.49217088]
[1750226508411,5.7411674,105500.0,105490.0,0.4833]
[1750226508828,5.7441674,105500.0,105490.0,0.4833]
[1750226509048,5.72149934,105500.0,105490.0,0.4833]
[1750226509266,5.72149934,105500.0,105490.0,0.1922]
[1750226511373,5.72149934,105500.0,105490.0,0.03912]
[1750226513682,5.72009934,105500.0,105490.0,0.03912]
[1750226513898,0.199071,105490.0,105480.0,0.66720425]
[1750226514114,5.249071,105490.0,105480.0,0.65994978]
[1750226514373,5.249071,105490.0,105480.0,0.46086]
[1750226514374,5.589071,105490.0,105480.0,0.46086]
[1750226514587,5.617554,105490.0,105480.0,0.46086]
[1750226514804,5.650354,105490.0,105480.0,0.46086]
[1750226515879,5.651354,105490.0,105480.0,0.46086]
[1750226516096,5.650354,105490.0,105480.0,0.46086]
[1750226516296,5.651354,105490.0,105480.0,0.46086]
[1750226516515,5.657354,105490.0,105480.0,0.46186]
[1750226516930,5.656354,105490.0,105480.0,0.46186]
[1750226517153,5.658354,105490.0,105480.0,0.46186]
[1750226518100,5.658354,105490.0,105480.0,0.1932]
[1750226518503,5.658354,105490.0,105480.0,0.001]
[1750226518758,5.658354,105490.0,105480.0,0.04012]
[1750226518759,5.690954,105490.0,105480.0,0.04012]
[1750226521174,5.71362304,105490.0,105480.0,0.04012]
[1750226522274,5.71362304,105490.0,105480.0,0.03912]
[1750226522490,5.71362304,105490.0,105480.0,0.01654]
[1750226522711,0.34,105470.0,105460.0,0.28586347]
[1750226522946,5.39,105470.0,105460.0,0.57417543]
[1750226523360,5.39,105470.0,105450.0,0.66724099]
[1750226523361,0.01896407,105460.0,105450.0,0.4681065]
[1750226523599,5.07844561,105460.0,105450.0,0.81686875]
[1750226523806,5.07844561,105460.0,105450.0,0.66378875]
[1750226524018,5.07844561,105460.0,105450.0,0.8314096]
[1750226524230,5.09745253,105460.0,105450.0,0.8314096]
[1750226524445,5.09745253,105460.0,105450.0,0.82252965]
[1750226524666,5.10740847,105460.0,105450.0,0.82252965]
[1750226524909,5.11659928,105460.0,105450.0,0.66944965]
[1750226525168,5.30624464,105460.0,105450.0,0.49233024]
[1750226525394,5.32920227,105460.0,105450.0,0.24122939]
[1750226525615,5.10740838,105460.0,105450.0,0.29069472]
[1750226525824,5.1074082,105460.0,105450.0,0.29069472]
[1750226526051,5.1084082,105460.0,105450.0,0.29269472]
[1750226526259,5.63805356,105460.0,105450.0,0.0346]
[1750226526471,5.06896488,105450.0,105440.0,0.2912905]
[1750226526686,5.07844759,105450.0,105440.0,0.2912905]
[1750226526890,5.08793048,105450.0,105440.0,0.4834905]
[1750226527100,5.12036974,105450.0,105440.0,0.49803135]
[1750226527314,5.13937985,105450.0,105440.0,0.49803135]
[1750226527529,5.15834572,105450.0,105440.0,0.31531496]
[1750226527768,5.15834572,105450.0,105440.0,0.50751496]
[1750226527983,5.15934572,105450.0,105440.0,0.50751496]
[1750226528612,5.15934563,105450.0,105440.0,0.50751496]
[1750226529043,5.16034635,105450.0,105440.0,0.51251496]
[1750226529250,5.16034698,105450.0,105440.0,0.34995153]
[1750226529461,5.33104481,105450.0,105440.0,0.49358801]
[1750226529684,5.35974347,105450.0,105440.0,0.49358801]
[1750226529889,5.35974347,105450.0,105440.0,0.46108819]
[1750226530313,5.66156183,105450.0,105440.0,0.22215698]
[1750226530523,5.66156183,105450.0,105440.0,0.38476068]
[1750226530524,5.69026049,105450.0,105440.0,0.38476068]
[1750226530745,5.43945887,105450.0,105440.0,0.4551442]
[1750226530966,5.43945887,105450.0,105440.0,0.44566068]
[1750226531210,5.47189813,105450.0,105440.0,0.45514411]
[1750226531434,5.67104463,105450.0,105440.0,0.45514447]
[1750226531648,5.69974329,105450.0,105440.0,0.44459707]
[1750226531861,5.69974329,105450.0,105440.0,0.42388086]
[1750226532324,5.66156183,105450.0,105440.0,0.40491319]
[1750226532570,5.71387742,105450.0,105440.0,0.20318913]
[1750226532788,5.71387742,105450.0,105440.0,0.24230913]
[1750226533017,5.71387742,105450.0,105440.0,0.39542913]
[1750226533255,5.71387742,105450.0,105440.0,0.0135078]
[1750226533524,5.73729426,105450.0,105440.0,0.0135078]
[1750226533750,5.73729426,105450.0,105440.0,0.21267319]
[1750226533974,5.70439426,105450.0,105440.0,0.0135078]
[1750226535802,5.73759426,105450.0,105440.0,0.0135078]
[1750226537002,5.68070313,105440.0,105430.0,0.30778]
[1750226537216,5.68070313,105440.0,105430.0,0.32611875]
[1750226537458,5.71330313,105440.0,105430.0,0.31663379]
[1750226537700,5.74180113,105440.0,105430.0,0.32611875]
[1750226538117,5.74180113,105440.0,105430.0,0.31663379]
[1750226538548,5.75128492,105440.0,105430.0,0.27751379]
[1750226538763,5.90440492,105440.0,105430.0,0.27751379]
[1750226539015,5.90540492,105440.0,105430.0,0.27751379]
[1750226539458,5.90640492,105440.0,105430.0,0.28151379]
[1750226540129,5.75328492,105440.0,105430.0,0.01284853]
[1750226540371,6.0987959,105440.0,105430.0,0.01284853]
[1750226541272,6.03055835,105440.0,105430.0,0.01284853]
[1750226542029,6.05314822,105440.0,105430.0,0.01284853]
[1750226543375,5.80195354,105440.0,105430.0,0.01284853]
[1750226543622,6.00111875,105440.0,105430.0,0.01284853]
[1750226544147,6.00111875,105440.0,105430.0,0.01285042]
[1750226544812,6.02370816,105440.0,105430.0,0.01285042]
[1750226547747,6.00111875,105440.0,105430.0,0.01285042]
[1750226548593,5.97242009,105440.0,105430.0,0.01285042]
[1750226548831,5.93998083,105440.0,105430.0,0.01285042]
[1750226549042,5.97242009,105440.0,105430.0,0.01285042]
[1750226549694,5.93798083,105440.0,105430.0,0.00885042]
[1750226549958,5.93798083,105440.0,105430.0,0.19854974]
[1750226550201,5.93898083,105440.0,105430.0,0.19594971]
[1750226550467,5.93898083,105440.0,105430.0,0.20543467]
[1750226551477,5.93798083,105440.0,105430.0,0.20543467]
[1750226551763,5.93998083,105440.0,105430.0,0.20018428]
[1750226551955,5.93798083,105440.0,105430.0,0.20866915]
[1750226552164,5.94398083,105440.0,105430.0,0.20966915]
[1750226552597,5.94398083,105440.0,105430.0,0.20018428]
[1750226553493,5.94398083,105440.0,105430.0,0.19069932]